[Event "1st Henriquez Urena Memorial 2022"]
[Site "Santo Domingo"]
[Date "2022.09.18"]
[Round "3.1"]
[White "Quezada Perez, Yasser"]
[Black "Ramirez, Alejandro"]
[Result "1/2-1/2"]
[ECO "C07"]
[WhiteElo "2580"]
[BlackElo "2561"]
[Annotator "TA"]
[PlyCount "48"]
[EventDate "2022.09.16"]
[EventType "swiss"]
[EventCountry "DOM"]
[SourceTitle "playchess.com"]
[Source "ChessBase"]
[SourceQuality "1"]
[TimeControl "5400+30"]

{[%evp 12,48,-18,-17,-14,-6,-9,-1,-7,-7,2,-18,-26,-39,-38,-51,-41,-46,-26,-31,-35,-48,-45,-39,-43,-52,-45,-39,-22,-31,-33,-41,-26,-25,-12,-20,0,0,0]} 1. e4 {[%emt 0:00:12]} e6 {[%emt 0:03:04]} 2. d4 {[%emt 0:00:26]} d5 {[%emt 0:00:37]} 3. Nd2 {[%emt 0:00:08]} c5 {[%emt 0:00:14]} 4. Ngf3 {[%emt 0:00:13]} cxd4 {[%emt 0:02:19]} 5. Nxd4 {[%emt 0:00:06]} Nf6 {[%emt 0:02:50]} 6. Bd3 {[%emt 0:03:19]} e5 {[%emt 0:07:45]} 7. N4f3 {[%emt 0:06:19] BESTDEEP} dxe4 {[%emt 0:01:02] CPLX 2.1. C07: French Tarrasch: 3...c5, 4 Ngf3 and 4 exd5 Qxd5.} 8. Nxe4 {[%emt 0:00:06] RECAPT} Nxe4 {[%emt 0:00:06] RECAPT} 9. Bxe4 {[%emt 0:00:04] RECAPT} Qxd1+ {[%emt 0:00:33] CPLX 3.1} 10. Kxd1 {[%emt 0:00:01] LEGAL} Nd7 {[%emt 0:01:35] CPLX 2.0 9 (f7-f6) (=2)} 11. Re1 {[%emt 0:02:12] CPLX 2.0 20 (Be4-d5) (=4)} f6 {[%emt 0:01:48] BESTDEEP} 12. Be3 {[%emt 0:11:19] CPLX 2.0 13 (c2-c3) (=6)} Nc5 {[#] CPLX 2.0} 13. Bxc5 $146 {[%emt 0:00:06] CPLX 2.3 13 (Nf3-d2) (=7)} ({Predecessor:} 13. Bd5 Bg4 14. h3 Bh5 15. Kc1 O-O-O 16. Rd1 Kc7 17. a4 e4 18. g4 Bg6 19. Nh4 {½-½ (25) Meijers,V (2465)-Kurajica,B (2541) El Sauzal 2004}) 13... Bxc5 {[%emt 0:05:15] RECAPT} 14. Ke2 {[%emt 0:00:06] CPLX 2.0 5 (Re1-e2) (=6)} Be6 {[%emt 0:04:27] CPLX 2.0 20 (Bc8-d7) (=4)} 15. Red1 {[%emt 0:00:29] BESTDEEP} ({Of course not} 15. Bxb7 Bc4+ 16. Kd2 Rb8 $17) 15... Ke7 {[%emt 1:06:25] BESTDEEP} 16. Rd2 {[%emt 1:13:24] CPLX 2.2 13 (c2-c3) (=6)} Rad8 {[%emt 0:00:30] BESTDEEP} 17. Rad1 {[%emt 0:00:00] BESTDEEP} Rxd2+ {CPLX 3.0} (17... Bxa2 18. b3 $14) 18. Rxd2 {RECAPT} Bc4+ {[%emt 0:01:00] CPLX 2.0 7 (g7-g5) (=3)} ({Don't play} 18... Bxa2 19. b3 $11) 19. Bd3 {[%emt 0:01:30] BESTDEEP} Bd5 {[%emt 0:00:00] [#] Threatens to win with ...e4. CPLX 2.3 17 (Bc4-f7) (=4)} 20. Bf5 {CPLX 2.2 9 (Nf3-h4) (=5)} Bc6 {[%emt 0:01:00] A strong pair of Bishops. BESTDEEP} 21. Nh4 {[%emt 0:01:00][%cal Of5g6] BESTDEEP} b6 {[%emt 0:00:30] CPLX 2.1 15 (g7-g5) (=5)} 22. c3 {[%emt 0:00:30] CPLX 2.1} g5 {[%emt 0:00:00] CPLX 2.2 13 (Ke7-e8) (=5)} 23. Nf3 {[%emt 0:00:30] CPLX 2.3} h6 {[%emt 0:01:00] CPLX 2.3 20 (h7-h5) (=6)} 24. Ne1 {[%emt 0:00:00] BESTDEEP} Bb5+ {[%emt 0:00:30] Weighted Error Value: White=0.04 (flawless) /Black=0.06 (flawless)} 1/2-1/2

[Event "1st Henriquez Urena Memorial 2022"]
[Site "Santo Domingo"]
[Date "2022.09.18"]
[Round "3.2"]
[White "Cuenca Jimenez, Jose Fernando"]
[Black "Leon Hoyos, Manuel"]
[Result "1-0"]
[ECO "A59"]
[WhiteElo "2553"]
[BlackElo "2491"]
[Annotator "TA"]
[PlyCount "97"]
[EventDate "2022.09.16"]
[EventType "swiss"]
[EventCountry "DOM"]
[SourceTitle "playchess.com"]
[Source "ChessBase"]
[SourceQuality "1"]
[TimeControl "5400+30"]

{[%evp 21,97,51,70,65,75,58,70,66,70,66,72,73,107,75,110,100,164,169,175,185,218,65,72,73,147,191,160,80,81,0,0,0,0,0,0,0,367,304,532,508,620,5277,4894,8035,5823,5842,6713,6724,5848,5241,3365,3421,1460,0,800,736,668,648,542,509,2022,2329,3997,2426,12841,12842,12843,12843,12844,12844,12845,12844,12845,12846,12849,12846,12846,12847]} 1. d4 {[%emt 0:00:05]} Nf6 {[%emt 0:00:05]} 2. c4 {[%emt 0:00:17]} c5 {[%emt 0:00:07]} 3. d5 {[%emt 0:00:41]} b5 {[%emt 0:00:05]} 4. cxb5 {[%emt 0:00:23]} a6 {[%emt 0:00:05]} 5. bxa6 {[%emt 0:00:32]} g6 {[%emt 0:00:05]} 6. Nc3 {[%emt 0:00:27]} Bxa6 {[%emt 0:00:05]} 7. e4 {[%emt 0:00:30]} Bxf1 {[%emt 0:00:04]} 8. Kxf1 {[%emt 0:00:04]} d6 {[%emt 0:00:05]} 9. g3 {[%emt 0:00:27]} Bg7 {[%emt 0:00:18]} 10. Nf3 {[%emt 0:00:15]} O-O {[%emt 0:00:09]} 11. Kg2 {[%emt 0:00:21]} Nbd7 {[%emt 0:00:07] CPLX 2.1 19 (Qd8-c8) (=19)} 12. a4 {[%emt 0:00:47] CPLX 2.1 5 (Qd1-c2) (=5). A59: Benko/Volga Gambit: White castles by hand.} Ra6 {[%emt 0:01:23] BESTDEEP} 13. Ra3 {[%emt 0:01:34] CPLX 2.2 17 (Rh1-e1) (=11) 13.Qe2 gains popularity.} Qa8 {[%emt 0:00:21] BESTDEEP} 14. Qc2 {[%emt 0:00:58] BESTDEEP. White is slightly better.} e6 {[%emt 0:25:38] CPLX 2.2} 15. dxe6 {[%emt 0:02:42] BESTDEEP} fxe6 {[%emt 0:00:21] RECAPT} 16. Re1 {[%emt 0:00:30] CPLX 2.4 0 (Nc3-b5) (=4)} d5 {[%emt 0:07:03] CPLX 2.4 34 (c5-c4) (=9)} 17. exd5 {[%emt 0:00:29] CPLX 2.8} exd5 {[%emt 0:00:03] RECAPT} 18. Nb5 $1 {[%emt 0:00:10] White is more active. DEEPSTRONG} ({Reject} 18. Re7 $6 Rc8 $14) 18... Qc6 {[%emt 0:08:49] Against Nc7. MISSDEEP-Qa8-b7 64 (Qa8-b7) (=15)} (18... Ne4 $2 19. Nc7 Qc6 20. Nxa6 Qxa6 21. a5 $18) (18... Qb7 $16) 19. Bf4 $1 $18 {[%emt 0:01:55] BESTDEEP} ({And not} 19. Re7 Ne4 $11) 19... Ne4 {[%emt 0:04:28] CPLX 2.8 6 (Rf8-e8) (=14)} 20. Nc7 $1 {[%emt 0:01:22] CPLX 3.4} Rxf4 {[%emt 0:08:46] CPLX 3.8 33 (Ra6-a7) (=16)} 21. gxf4 {[%emt 0:36:29] MISS-Nc7xa6 153 (Nc7xa6) (=18)} (21. Nxa6 $18 Rf6 22. Nxc5 $1) 21... Qxc7 $14 {[%emt 0:00:12] EASY} 22. Rxe4 {[%emt 0:00:08][%mdl 64] Decoy. EASY} dxe4 {[%emt 0:06:29] RECAPT} 23. Qc4+ {[%emt 0:00:07] [#] EASY} Kh8 $146 {[%emt 0:16:23] [#] EASY} ({Predecessor:} 23... Kf8 24. Qxa6 exf3+ 25. Rxf3 Bxb2 26. f5 g5 27. Rb3 Bd4 28. Rb7 Qf4 29. Qh6+ Bg7 30. Qe6 Qg4+ {½-½ (30) Timoscenko,G (2483)-Vaisser,A (2555) Rijeka 2011}) 24. Qxa6 {[%emt 0:02:57] MISSDEEP-Nf3-g5 80 (Nf3-g5) (=20)} (24. Ng5 $142 $1 {[%cal Rg5f7] Intending Nf7+ and mate.} Rf6 25. Nf7+ Rxf7 26. Qxf7) 24... exf3+ $16 {[%emt 0:00:49] EASY} 25. Kxf3 {[%emt 0:17:41] CPLX 3.9 81 (Ra3xf3) (=24)} ({White should try} 25. Rxf3 $16 Bxb2 26. f5) 25... Bxb2 $11 {[%emt 0:00:11] DEEPSTRONG=>BLUNDERREACT} 26. Rb3 {[%emt 0:02:24] MISS-Ra3-e3 0 (Ra3-e3) (=22)} Bd4 {[%emt 0:00:04] CPLX 4.5} 27. Rb7 {[%emt 0:05:12] Dancing on a razor blade. CPLX 5.0 0 (a4-a5) (=21)} Qc8 {[%emt 0:00:32] BESTDEEP} 28. Kg3 {[%emt 0:03:54] BESTDEEP} h5 $2 {[%emt 0:07:54][%mdl 8192] White now steadily converts the win. MISSDEEP-g6-g5 367 (g6-g5) (=29)} (28... c4 $2 29. Qb5 Nf8 30. Rb8 $18) (28... g5 $1 $11 {and Black stays safe.} 29. fxg5 c4) 29. h3 $18 {[%emt 0:03:43] And now a5 would win. BESTDEEP} h4+ $2 {[%emt 0:00:34] CPLX 4.1 228 (Bd4-c3) (=40)} (29... Bc3 {was necessary.} 30. Ra7 h4+ 31. Kxh4 Qd8+ 32. Kg3 Nf8) 30. Kg2 {[%emt 0:00:47] Black must now prevent a5. CPLX 3.9=>BLUNDERREACT} c4 {[%emt 0:01:11] Threatens to win with ...c3. CPLX 3.9 112 (Bd4-g7) (=43)} 31. Qb5 {[%emt 0:04:02] BEVAL} Nf8 {[%emt 0:05:25] BEVAL} 32. Rb8 {[%emt 0:00:56] BEVAL} Qc5 {[%emt 0:01:16] BEVAL} 33. Qxc5 {[%emt 0:00:10] BEVAL} Bxc5 {[%emt 0:00:02] BEVAL} 34. Rc8 {[%emt 0:00:11] BEVAL} Bb4 {[%emt 0:02:34] BEVAL} 35. Rxc4 {[%emt 0:01:41] BEVAL} Bd2 {[%emt 0:00:16] BEVAL} 36. Rd4 {[%emt 0:01:16] BEVAL} Bc3 {[%emt 0:01:05] BEVAL 0 (Bd2-e1) (=33)} 37. Rc4 {[%emt 0:01:40] CPLX 2.9 400 (Rd4-d5) (=28)} Bd2 {[%emt 0:00:03] EVAL} 38. Kf3 {[%emt 0:00:43] EVAL 64 (Rc4-c2) (=30). White is clearly winning.} Ne6 {[%emt 0:01:25] Prevents Rd4. CPLX 2.7} 39. Kg4 {[%emt 0:00:18] f5 is the strong threat. CPLX 2.9} Kg7 {[%emt 0:00:40] CPLX 3.0} 40. f5 {[%emt 0:00:52] EASY} Nf8 {[%emt 0:01:44] BEVAL 400 (g6xf5) (=42)} (40... gxf5+ $142 41. Kxf5 Kf7 42. Rxh4 Ng7+ 43. Ke5 Bc3+ 44. Kd5 Be1 45. Rf4+ Kg6) 41. Rc5 {[%emt 0:01:53] aiming for fxg6. BEVAL} Be1 {[%emt 0:02:14] BEVAL 400 (Kg7-f6) (=54)} 42. f4 {[%emt 0:00:54] BEVAL} Kf6 {[%emt 0:01:46] BEVAL 400 (Nf8-h7) (=64)} 43. a5 {[%emt 0:01:15][%cal Ba4a5,Ba5a6][%mdl 32] BEVAL} gxf5+ {[%emt 0:00:22] BEVAL 1 (Nf8-h7) (=63)} 44. Rxf5+ {[%emt 0:00:04] BEVAL} Kg7 {[%emt 0:00:08] BEVAL} 45. a6 {[%emt 0:00:08] BEVAL} Bf2 {[%emt 0:00:15] BEVAL} 46. Kf3 {[%emt 0:00:18] BEVAL 1 (Rf5-b5) (=23)} Bb6 {[%emt 0:00:13] BEVAL 1 (Bf2-d4) (=57)} 47. Rb5 {[%emt 0:01:06] BEVAL} Nd7 {[%emt 0:00:04] BEVAL 3 (Bb6-a7) (=56)} 48. a7 {[%emt 0:00:13] BEVAL 3 (Rb5xb6) (=22)} Bxa7 {[%emt 0:00:05] BEVAL} 49. Rb7 $1 {[%emt 0:00:01][%csl LRa7,LRd7] Weighted Error Value: White=0.33/Black=0.50} 1-0

[Event "1st Henriquez Urena Memorial 2022"]
[Site "Santo Domingo"]
[Date "2022.09.18"]
[Round "3.3"]
[White "Araujo Sanchez, Josue"]
[Black "Mesa Cruz, Juan Carlos"]
[Result "1-0"]
[ECO "A13"]
[WhiteElo "2281"]
[BlackElo "2119"]
[Annotator "TA"]
[PlyCount "71"]
[EventDate "2022.09.16"]
[EventType "swiss"]
[EventCountry "DOM"]
[SourceTitle "playchess.com"]
[Source "ChessBase"]
[SourceQuality "1"]
[TimeControl "5400+30"]

{[%evp 9,71,8,21,14,37,22,26,10,19,0,6,10,26,29,29,29,30,29,30,32,192,114,107,108,109,114,109,113,113,108,113,112,116,114,139,108,116,97,178,178,178,178,177,171,176,171,172,171,169,160,176,179,185,187,197,189,518,227,929,914,890,854,898,824]} 1. Nf3 {[%emt 0:08:36]} d5 {[%emt 0:00:17]} 2. c4 {[%emt 0:01:10]} e6 {[%emt 0:00:18]} 3. b3 {[%emt 0:00:43]} c5 {[%emt 0:01:22]} 4. Bb2 {[%emt 0:01:33]} Nc6 {[%emt 0:00:39]} 5. cxd5 {[%emt 0:01:43]} exd5 {[%emt 0:00:16]} 6. e3 {[%emt 0:00:53] A13: English Opening: 1...e6.} Bg4 {[%emt 0:05:43]} 7. Be2 {[%emt 0:03:09]} Nf6 {[%emt 0:02:37]} 8. O-O {[%emt 0:00:55] White has an edge.} Bd6 {[%emt 0:00:28] [#]} 9. d3 $146 {[%emt 0:00:43]} ({Predecessor:} 9. d4 Bxf3 10. Bxf3 Qc7 11. dxc5 Bxh2+ 12. Kh1 Be5 13. Nc3 Qe7 14. Nxd5 Nxd5 15. Bxe5 Nxe5 16. Qxd5 Nxf3 17. Qxf3 {1-0 (39) Sankalp,G (2504)-Parnali,S (2133) Nashik 2022}) 9... Bxf3 {[%emt 0:10:03]} 10. Bxf3 {[%emt 0:01:18]} Be5 {[%emt 0:00:13]} 11. d4 {[%emt 0:10:04]} cxd4 {[%emt 0:00:20]} 12. exd4 {[%emt 0:00:18]} Bd6 {[%emt 0:00:09]} 13. Re1+ {[%emt 0:01:43]} Ne7 {[%emt 0:00:03]} 14. Nc3 {[%emt 0:00:27] Nxd5 is the strong threat.} a6 $2 {[%emt 0:05:00] [#]} (14... Bb4 $14) 15. Bxd5 {[%emt 0:15:07]} (15. Nxd5 $1 $18 Nfxd5 16. Bxd5) 15... Nfxd5 $16 {[%emt 0:05:12]} 16. Nxd5 {[%emt 0:01:32]} O-O {[%emt 0:00:24]} 17. Nxe7+ {[%emt 0:04:34]} Bxe7 {[%emt 0:00:03]} 18. Qf3 {[%emt 0:00:45]} Qd7 {[%emt 0:01:32]} 19. d5 {[%emt 0:02:52]} Rfd8 {[%emt 0:01:26]} 20. Rad1 {[%emt 0:01:57]} Rac8 {[%emt 0:01:47]} 21. Re2 {[%emt 0:11:02]} Rc5 {[%emt 0:07:12][%cal Rc5d5]} 22. h3 {[%emt 0:09:58] [#] Threatens to win with Ba3. White is more active.} ({But not} 22. Ba3 $2 Rxd5 23. Rxd5 Qxd5 24. Qxd5 Rxd5 $19) 22... Bd6 {[%emt 0:10:40]} 23. Qe4 {[%emt 0:02:17]} Bf8 {[%emt 0:03:52]} (23... Rcc8 $16) 24. Ba3 $18 {[%emt 0:01:13]} Rcc8 {[%emt 0:00:29] Strongly threatening ...Re8.} 25. Bxf8 $40 {[%emt 0:00:14][%mdl 128] White goes for the king.} Rxf8 {[%emt 0:00:09]} 26. Qf4 {[%emt 0:05:39]} Rfe8 {[%emt 0:06:36]} 27. Rxe8+ {[%emt 0:01:23]} Rxe8 {[%emt 0:00:04][%mdl 4096] Endgame KQR-KQR} 28. h4 {[%emt 0:00:18]} h6 {[%emt 0:00:14]} 29. Kh2 {[%emt 0:00:58]} Re2 {[%emt 0:02:14]} 30. a4 {[%emt 0:00:31]} Rc2 {[%emt 0:01:57]} 31. Rd3 {[%emt 0:01:13]} Rc5 {[%emt 0:03:41]} 32. d6 {[%emt 0:00:16]} Rh5 $2 {[%emt 0:10:38]} (32... Rc8 33. Rd5 Rd8) 33. Kg1 {[%emt 0:02:51]} (33. Qe4 $142) 33... Rf5 $2 {[%emt 0:01:43]} (33... Rc5 34. Qe4 Rc8) 34. Qe4 {[%emt 0:01:20] aiming for Qe7. White is clearly winning.} Rf6 {[%emt 0:00:19]} 35. Qe7 {[%emt 0:02:24]} Qc6 {[%emt 0:04:19]} 36. Qc7 {[%emt 0:01:54] Weighted Error Value: White=0.19 (very precise) /Black=0.33} 1-0

[Event "1st Henriquez Urena Memorial 2022"]
[Site "Santo Domingo"]
[Date "2022.09.18"]
[Round "3.4"]
[White "Camacho Campusano, David Daniel"]
[Black "Peralta, Fernando"]
[Result "0-1"]
[ECO "C01"]
[WhiteElo "2230"]
[BlackElo "2600"]
[Annotator "TA"]
[PlyCount "148"]
[EventDate "2022.09.16"]
[EventType "swiss"]
[EventCountry "DOM"]
[SourceTitle "playchess.com"]
[Source "ChessBase"]
[SourceQuality "1"]
[TimeControl "5400+30"]

{[%evp 10,148,0,0,0,0,0,0,16,0,0,0,0,-29,-17,-39,-41,-78,-90,-71,-65,-85,-42,-39,-47,-63,-11,-41,-31,-56,-40,-56,-48,-37,-40,-71,-67,-84,-16,-16,-12,-26,-26,-18,-18,-24,-19,-62,-18,-16,-14,-20,-18,-18,-10,-11,-7,-16,-11,-12,-8,-13,-7,-10,-7,-7,-7,-7,-6,-6,-6,-17,-6,-15,-5,-17,-17,-12,-10,-8,-8,-17,-6,-9,0,-10,0,0,0,-12,-13,-12,-14,-56,-36,-59,-33,-33,-33,-33,-18,-26,-25,-32,-32,-1087,-102,-535,-535,-535,-516,-535,-535,-535,-535,-535,-308,-300,-222,-253,0,-145,0,0,0,0,0,0,0,-259,-253,-524,-524,-543,-143,-143,0,-29968,-4618,-29979,-29980]} 1. e4 {[%emt 0:00:36]} e6 {[%emt 0:00:06]} 2. d4 {[%emt 0:00:13]} d5 {[%emt 0:00:04]} 3. Bd3 {[%emt 0:00:27][%cal Bf1d3,Bd3e4,Be4f3][%mdl 32]} dxe4 {[%emt 0:00:24]} 4. Bxe4 {[%emt 0:00:07]} Nf6 {[%emt 0:00:04]} 5. Bf3 {[%emt 0:01:09]} c5 {[%emt 0:00:14]} 6. Ne2 {[%emt 0:00:32] CPLX 2.4} Nc6 {[%emt 0:03:00][%cal Rc5d4] C01: French: Exchange Variation.} 7. Be3 {[%emt 0:00:26] CPLX 2.5} Be7 {[%emt 0:00:14]} 8. Nbc3 {[%emt 0:00:26] CPLX 2.6} O-O {[%emt 0:00:27] CPLX 2.4 16 (c5xd4) (=5). The position is equal.} 9. O-O {[%emt 0:02:23] CPLX 2.5 16 (d4xc5) (=4)} cxd4 {[%emt 0:00:42] CPLX 2.5} 10. Nxd4 {[%emt 0:00:57] RECAPT} Ne5 {[%emt 0:00:18] CPLX 2.5} 11. Be2 {[%emt 0:02:44] CPLX 2.3 29 (Qd1-e2) (=8)} Qc7 {[%emt 0:04:49] CPLX 2.4 12 (Ne5-g6) (=5)} 12. Ndb5 {[%emt 0:13:17] CPLX 2.3 22 (Be3-f4) (=10)} Qb8 {[%emt 0:01:51] [#] BESTDEEP} 13. Qd4 $146 {[%emt 0:06:40][%cal Rb5a7] CPLX 2.6 37 (a2-a4) (=13)} ({Predecessor:} 13. Qc1 a6 14. Nd4 Neg4 15. Nf3 Nxe3 16. Qxe3 b5 17. a3 Ng4 18. Qe4 f5 19. Qd3 {1-0 (55) Mohammadi,M (1745)-Odmaa,E (1113) Tornelo INT 2021}) 13... Rd8 {[%emt 0:14:36] CPLX 2.7} 14. Qf4 {[%emt 0:03:17] CPLX 3.1} a6 {[%emt 0:00:44] CPLX 2.8} 15. Nd4 {[%emt 0:12:40] CPLX 3.0} Bd6 {[%emt 0:01:21][%cal Oe5g4] CPLX 2.6 43 (Ne5-g4) (=7)} 16. Ne4 {[%emt 0:03:11] CPLX 2.5} Nd5 {[%emt 0:12:34] BESTDEEP} 17. Qh4 {[%emt 0:02:25] CPLX 3.4 16 (Qf4-g3) (=10)} Bc7 {[%emt 0:01:35] MISSDEEP-Bd6-e7 52 (Bd6-e7) (=10)} ({Black should try} 17... Be7 $15 18. Qh5 h6) 18. Rad1 {[%emt 0:02:25] CPLX 3.4 30 (Be2-h5) (=12)} Ng6 {[%emt 0:02:28] DEEPSTRONG} 19. Qh5 {[%emt 0:10:20] EASY} Ndf4 {[%emt 0:02:22] CPLX 3.6} 20. Bxf4 {[%emt 0:02:03] EASY} Nxf4 {[%emt 0:00:14] RECAPT} 21. Qf3 {[%emt 0:02:15] CPLX 4.4} Nxe2+ {[%emt 0:12:03] CPLX 3.0 0 (Bc7-b6) (=8)} 22. Nxe2 {[%emt 0:00:59] CPLX 3.6 31 (Qf3xe2) (=11)} Bd7 $1 {[%emt 0:00:32] DEEPSTRONG} 23. N2g3 {[%emt 0:02:44][%cal Oe4f6] CPLX 3.0 17 (Ne4-g3) (=11)} Be5 {[%emt 0:02:31] Prevents Nf6+. This bishop pair is nice. RELBLUND 68 (Bd7-c6) (=11)} (23... Bc6 $17 {White must now prevent ...Bxg3.} 24. Qe3 Rxd1 25. Rxd1 Qf8) 24. Qh5 $11 {[%emt 0:02:18] EASY} (24. Ng5 f6 25. N5e4 Bb5 26. Rxd8+ Qxd8 $17) 24... Bf4 {[%emt 0:12:59] CPLX 3.7 4 (f7-f6) (=10)} 25. Ng5 {[%emt 0:02:36] CPLX 3.6 14 (Qh5-g4) (=11)} Bxg5 {[%emt 0:00:08] EASY} 26. Qxg5 {[%emt 0:00:10] RECAPT} h6 {[%emt 0:00:26] CPLX 2.8} 27. Qg4 {[%emt 0:07:30] CPLX 3.1 6 (Qg5-c1) (=10)} Qe5 {[%emt 0:01:18] CPLX 2.7} 28. Qd4 {[%emt 0:00:21] CPLX 2.8 43 (c2-c3) (=11)} (28. c3 {seems wilder.} Bc6 29. h3 Qa5 30. Rfe1) 28... Qxd4 {[%emt 0:01:36] CPLX 2.9 44 (Qe5-a5) (=10)} (28... Qa5 {is more complex.} 29. Rd3 Bc6 30. Qc3 Qxc3 31. Rxc3 Rac8) 29. Rxd4 {[%emt 0:00:04] RECAPT} Bc6 {[%emt 0:00:40] CPLX 2.0} 30. Rfd1 {[%emt 0:00:12] EASY} Rxd4 {[%emt 0:00:08] CPLX 2.1} 31. Rxd4 {[%emt 0:00:15][%mdl 4096] Endgame KRB-KRN. RECAPT} Kf8 {[%emt 0:00:14] CPLX 2.0 8 (Ra8-c8) (=10)} 32. f3 {[%emt 0:00:40] CPLX 2.0 1 (Ng3-f1) (=10)} Ke7 {[%emt 0:00:38] CPLX 2.0} 33. Kf2 $1 {[%emt 0:00:26] DEEPSTRONG} g6 {[%emt 0:00:48] CPLX 2.0 5 (Ra8-c8) (=9)} 34. Ne2 {[%emt 0:01:39] CPLX 2.0 1 (Ng3-f1) (=9)} a5 {[%emt 0:05:55] CPLX 2.0 4 (Ra8-c8) (=9)} 35. Ke3 {[%emt 0:02:51] CPLX 2.0 5 (Rd4-d2) (=9)} e5 {[%emt 0:04:45] CPLX 2.0 6 (b7-b5) (=9)} 36. Rd1 {[%emt 0:01:50] CPLX 2.0} f5 {[%emt 0:00:22] CPLX 2.0 3 (b7-b5) (=9)} 37. g3 {[%emt 0:01:17] BESTDEEP} g5 {[%emt 0:01:10] CPLX 2.0} 38. f4 {[%emt 0:01:15] CPLX 2.0} Ke6 {[%emt 0:15:10] CPLX 2.2 1 (e5xf4) (=8)} 39. fxe5 $1 {[%emt 0:02:23] CPLX 2.3} Kxe5 {[%emt 0:00:30] RECAPT} 40. Nd4 {[%emt 0:00:34] CPLX 2.0 11 (Rd1-d4) (=8)} Be4 {[%emt 0:00:00] CPLX 2.1 11 (Ra8-a6) (=8)} 41. Nf3+ {[%emt 0:00:46] CPLX 2.0 9 (a2-a4) (=8)} Ke6 {[%emt 0:00:00] CPLX 2.1 10 (Be4xf3) (=8)} 42. Nd4+ {[%emt 0:00:12] CPLX 2.2 12 (c2-c3) (=8)} Kf6 {[%emt 0:00:00] BESTDEEP} 43. c3 {[%emt 0:03:26] CPLX 2.0} Re8 {[%emt 0:00:00] CPLX 2.0 2 (a5-a4) (=8)} 44. Kf2 {[%emt 0:00:34] CPLX 2.0} Rd8 {[%emt 0:00:00] CPLX 2.0 0 (a5-a4) (=7)} 45. Ke3 {[%emt 0:00:16] CPLX 2.0 9 (a2-a4) (=8)} h5 {[%emt 0:00:00] CPLX 2.0 11 (a5-a4) (=8)} 46. Rd2 {[%emt 0:02:20] CPLX 2.0} Re8 {[%emt 0:00:00] CPLX 2.0} 47. Kf2 {[%emt 0:00:30] CPLX 2.0 10 (b2-b3) (=8)} Rd8 {[%emt 0:00:00] CPLX 2.0 10 (a5-a4) (=7)} 48. Ke3 {[%emt 0:00:06] CPLX 2.0} a4 {[%emt 0:00:00] CPLX 2.0 0 (Rd8-d7) (=7)} 49. b3 {[%emt 0:01:28] CPLX 2.0 12 (Nd4-f3) (=8)} axb3 {[%emt 0:00:00] CPLX 2.2} 50. axb3 {[%emt 0:00:03] RECAPT} Re8 {[%emt 0:01:13] CPLX 2.0} 51. Rf2 {[%emt 0:02:33] CPLX 2.0 42 (c3-c4) (=8)} Ra8 {[%emt 0:00:45] CPLX 2.0 20 (Re8-c8) (=7)} 52. h3 {[%emt 0:01:08][%cal Od4f5] CPLX 2.0 23 (Nd4-f3) (=8)} Ke5 {[%emt 0:02:12] CPLX 2.1 26 (Ra8-c8) (=8)} 53. Nf3+ {[%emt 0:01:06] CPLX 2.3} Bxf3 {[%emt 0:00:53] CPLX 2.0} 54. Kxf3 $15 {[%emt 0:00:02] KR-KR. RECAPT} g4+ {[%emt 0:00:24] CPLX 2.0 15 (Ra8-a3) (=8)} 55. hxg4 {[%emt 0:00:56] CPLX 2.0} hxg4+ {[%emt 0:00:03] RECAPT} 56. Ke3 {[%emt 0:00:49] CPLX 2.0} Ra1 {[%emt 0:01:10] BESTDEEP} 57. Rf4 $2 {[%emt 0:01:42][%mdl 8192] RELBLUND 400 (Rf2-e2) (=15)} (57. Re2 $15) 57... Rc1 $2 {[%emt 0:01:41] RELBLUND 400 (Ra1-e1) (=15)} (57... Re1+ $1 $19 {is more deadly.} 58. Kd2 Rg1) 58. Rc4 $2 {[%emt 0:00:09][%mdl 8192] MISSDEEP-Rf4-b4 400 (Rf4-b4) (=23)} (58. Rb4 $17) 58... Rf1 $1 $19 {[%emt 0:00:11] Strongly threatening ...Rf3+. DEEPSTRONG=>BLUNDERREACT} 59. Rc5+ {[%emt 0:01:21] CPLX 2.0} Kf6 {[%emt 0:00:38] Threatens to win with ...Rf3+. DEEPSTRONG} ({Stronger than} 59... Kd6 60. Rb5 $11) 60. Rb5 {[%emt 0:00:26] CPLX 2.0 19 (Rc5-c7) (=22)} Rf3+ {[%emt 0:00:24] EASY} 61. Kd4 {[%emt 0:00:14]} Rxg3 {[%emt 0:00:17]} 62. Rxb7 {[%emt 0:00:15]} Rf3 {[%emt 0:01:00]} 63. Rb8 {[%emt 0:00:53]} Rf4+ $1 {[%emt 0:00:31]} 64. Ke3 {[%emt 0:00:40]} Rf3+ {[%emt 0:00:04]} (64... Re4+ $1 $19 65. Kd3 Kf7) 65. Kd4 $17 {[%emt 0:00:12]} g3 {[%emt 0:00:13]} (65... Kf7 $17 {And now ...g3 would win.} 66. Rb7+ Kf6 67. Rb8) 66. Rg8 $11 {[%emt 0:00:20]} Kf7 {[%emt 0:00:02]} 67. Rg5 {[%emt 0:00:14]} Kf6 {[%emt 0:00:02]} 68. Rg8 {[%emt 0:00:01]} f4 {[%emt 0:00:57][%cal Bf5f4,Bf4f3,Bf3f2][%mdl 32]} 69. b4 $2 {[%emt 0:01:09][%mdl 8192] [#]} (69. Ke4 $11 Rxc3 70. Kxf4) 69... Kf5 $1 $19 {[%emt 0:01:22]} 70. b5 $2 {[%emt 0:00:59]} (70. c4 Rb3 71. b5) 70... Rf1 {[%emt 0:00:18]} 71. c4 {[%emt 0:01:06]} Rb1 $2 {[%emt 0:00:40]} (71... Rd1+ $19 72. Kc3 Ke4) 72. Kd3 $17 {[%emt 0:00:32]} Ke5 {[%emt 0:00:54]} (72... Rd1+ $17 73. Kc2 (73. Ke2 Rb1 $17) 73... Rd6) 73. Kc2 $2 {[%emt 0:00:42][%mdl 8192] [#]} (73. Rg5+ $11 Kf6 74. Rg8) 73... f3 $1 {[%emt 0:00:27] ( -> ...f2)} 74. Kxb1 {[%emt 0:01:12]} (74. Rxg3 f2) 74... f2 {[%emt 0:00:10] Weighted Error Value: White=0.31/Black=0.19 (very precise)} 0-1